Cogmind - Beta 16 @@@ ROGUE MODE // 2025.11.13 @ 21:25:03 Player: jes Result: Destroyed by D-53 Grenadier with Mini Grenade Launcher Performance ------------- Evolutions (0) 0 Regions Visited (2) 400 Robots Destroyed (22) 110 Value Destroyed (510) 510 Prototype IDs (0) 0 Alien Tech Used (0) 0 Bonus (0) 0 TOTAL SCORE: 1020 Bonus ------- None Cogmind --------- Core Integrity 0/250 Matter 85/300 Energy 249/250 System Corruption 3% Temperature Cool (0) Movement Walking (190) Ox1 Location -10/Mines Parts ------- > --- POWER (1) -------- Ion Engine > --- PROPULSION (2) --- Aluminum Leg > --- UTILITY (2) ------ Medium Storage Unit > --- WEAPON (2) ------- Light Assault Rifle > --- INVENTORY (10) --- Ion Engine Aluminum Leg Aluminum Leg Flexi-carbon Leg Medium Matter Pod (0) Light Assault Rifle Light Assault Rifle Heavy Hammer Peak State ------------ > --- POWER ------------ Light Nuclear Core > --- PROPULSION ------- Light Treads Light Treads > --- UTILITY ---------- Medium Storage Unit Transport Network Coupler > --- WEAPON ----------- Assault Rifle Light Cannon > --- INVENTORY -------- Ion Engine Ion Engine Ion Engine Aluminum Leg Aluminum Leg Medium Matter Pod Sensor Array Light Assault Rifle Heavy Hammer [Rating: 10] Favorites ----------- Power Ion Engine Engine Ion Engine Power Core Light Nuclear Core Propulsion Light Treads Treads Light Treads Leg Aluminum Leg Utility Large Storage Unit Device Sensor Array Storage Large Storage Unit Processor Transport Network Coupler Weapon Assault Rifle Ballistic Gun Assault Rifle Ballistic Cannon Light Cannon Launcher Grenade Launcher Impact Weapon Heavy Hammer Build | -11 -10 -10 ------- Run | Yrd Mat Min Slots Evolved . | . . . Power . | . . . Propulsion . | . . . Utility . | . . . Weapon . | . . . Parts Attached 24 | 6 12 6 Power 4 | 1 3 . Engine 3 | 1 2 . Core 1 | . 1 . Reactor . | . . . Propulsion 6 | 2 3 1 Treads 2 | . 2 . Leg 4 | 2 1 1 Wheel . | . . . Hover . | . . . Flight . | . . . Utility 5 | 1 4 . Device 1 | . 1 . Storage 3 | 1 2 . Processor 1 | . 1 . Hackware . | . . . Protection . | . . . Artifact . | . . . Weapon 9 | 2 2 5 Energy Gun . | . . . Energy Cannon . | . . . Ballistic Gun 5 | 2 1 2 Ballistic Cannon 1 | . 1 . Launcher 2 | . . 2 Special Weapon . | . . . Impact Weapon 1 | . . 1 Slashing Weapon . | . . . Piercing Weapon . | . . . Special Melee Weapon . | . . . Unidentified Prototypes . | . . . Parts Lost 8 | . . 8 Power 1 | . . 1 Propulsion 2 | . . 2 Utility 1 | . . 1 Weapon 4 | . . 4 Highest Loss Streak 6 | . . 6 To Critical Strikes . | . . . Average Backups 7 | 2 8 8 Power 1 | . 1 1 Propulsion 2 | 1 2 2 Utility 1 | . 1 1 Weapon 2 | . 2 2 Tool/Special . | . . . Unused Backups 8 | . 4 4 Power 1 | . 1 . Propulsion 3 | . 1 2 Utility 2 | . . 2 Weapon 2 | . 2 . Tool/Special . | . . . Average Slot Usage (%) 91 | . 92 82 Engine 9 | . 9 9 Core 4 | . 4 4 Treads 19 | . 22 . Leg 8 | . 5 25 Device 3 | . 3 4 Storage 14 | . 14 14 Processor 3 | . 3 . Ballistic Gun 21 | . 23 11 Ballistic Cannon 4 | . 4 4 Impact Weapon 1 | . . 7 Peak Build Rating 10 | 6 10 10 Average Rating 7 | 5 7 7 On Entrance 5 | . 6 10 Avg Prop Armor Cover (%) . | . . . Naked Turns . | . . . Heaviest Build 33 | 13 33 21 Greatest Support 40 | 20 40 20 Greatest Overweight (x) 6 | 1 6 1 Average Overweight (x) . | . . . Largest Inventory Capacity 15 | 8 15 10 Average Capacity 12 | 7 13 10 Most Carried 10 | 4 10 10 Average Carried 7 | 2 8 8 Final Capacity 10 | 8 10 10 Final Carried 10 | 4 10 8 Class Distribution -------------------- 100% | Mutant Dominant Class ---------------- Mutant | -10/Materials Mutant | -10/Mines Resources | -11 -10 -10 ----------- Run | Yrd Mat Min Matter Collected 753 | 292 345 116 Remotely . | . . . Salvage Created 686 | 78 528 80 Parts 43 | 4 34 5 Haulers Intercepted 2 | . 2 . Recyclers Shooed . | . . . Parts Field Recycled . | . . . Retrieved Matter . | . . . Parts Self-Destructed . | . . . Prevented . | . . . Parts Restored . | . . . Kills | -11 -10 -10 ------- Run | Yrd Mat Min Combat Hostiles Destroyed 31 | . 14 17 Guns 11 | . 11 . Cannons 4 | . 3 1 AOE 16 | . . 16 Classes Destroyed 9 | 2 5 2 Worker 1 | . . 1 Tunneler 1 | 1 . . Hauler 2 | . 2 . Recycler 1 | 1 . . Operator 1 | . 1 . Watcher 1 | . 1 . Swarmer 4 | . 3 1 Grunt 11 | . 11 . Assembled 16 | . . 16 Best Kill Streak 18 | 2 3 18 Combat Bots Only 16 | . 3 16 Max Kills in Single Turn 4 | 1 1 4 Gunslinging . | . . . Exploded 4 | . . 4 Melee . | . . . Uniques/NPCs Destroyed . | . . . Combat | -11 -10 -10 -------- Run | Yrd Mat Min Hostile Shots Fired 103 | . 56 47 Missed 30 | . 15 15 Hits 73 | . 41 32 Melee 3 | . . 3 Projectile 70 | . 41 29 AOE 8 | . . 8 Critical Strikes 1 | . . 1 Damage Taken 1327 | . 446 881 Core 262 | . 66 196 Absorbed by Shields . | . . . Core Remaining (%) 100 | 100 . . Volleys Fired 81 | 8 57 16 Largest 2 | 2 2 2 Hottest 60 | 40 50 60 Shots Fired 154 | 16 114 24 Gun 106 | 16 84 6 Cannon 35 | . 30 5 Launcher 13 | . . 13 Special . | . . . Kinetic 141 | 16 114 11 Thermal . | . . . Explosive 13 | . . 13 Electromagnetic . | . . . Robot Hit Streak 16 | 5 16 7 Robot Miss Streak 3 | 1 3 2 Penetration Max . | . . . Secondary Targets 3 | . 3 . Max Gunslinging Chain 1 | . 1 . Shots Hit Robots 111 | 12 82 17 Core Hits 70 | 4 30 36 Critical Kills 1 | . 1 . Critical Parts Destroyed . | . . . Critical Strikes 1 | . 1 . Destroy 1 | . 1 . Melee Attacks . | . . . Impact . | . . . Slashing . | . . . Piercing . | . . . Sneak Attacks . | . . . Combat Hostiles . | . . . Follow-up Attacks . | . . . Damage Inflicted 2249 | 121 1051 1077 Guns 797 | 121 630 46 Cannons 455 | . 421 34 Explosions 997 | . . 997 Melee . | . . . Ramming . | . . . Kinetic 1252 | 121 1051 80 Thermal . | . . . Explosive 997 | . . 997 Electromagnetic . | . . . Impact . | . . . Slashing . | . . . Piercing . | . . . Highest Corruption 3 | . 3 3 Average Corruption 2 | . 2 3 Corruption Purged . | . . . Corruption Blocked . | . . . Effects 9 | . 6 3 Message Errors 3 | . 3 . Heat Flow Errors 1 | . . 1 Energy Discharges 1 | . 1 . Data Loss (minor) 2 | . . 2 Misfires 1 | . 1 . Weapon Failures 1 | . 1 . Overload Shots . | . . . Overflow Damage 57 | . 3 54 Projectiles 3 | . 3 . Explosions 54 | . . 54 Melee . | . . . Knockbacks 11 | . 11 . Impact . | . . . Kinetic 9 | . 9 . Secondary 2 | . 2 . Self-Inflicted Damage 111 | . . 111 Shots 6 | . . 6 Rammed . | . . . Targets Rammed . | . . . Kicked . | . . . Crushed . | . . . Highest Temperature 156 | . 12 156 Average Temperature 33 | . 5 71 Received Heat Transfer 201 | . 201 . Siege Activations . | . . . Martial Activations . | . . . Shielding Activations . | . . . Robots Disrupted . | . . . Combat Hostiles . | . . . Robots Corrupted . | . . . Combat Hostiles . | . . . Parts Fried . | . . . Impact Corruptions . | . . . Robots Melted . | . . . Combat Hostiles . | . . . Parts Melted . | . . . Heat Transferred . | . . . Parts Sabotaged . | . . . Parts Stolen . | . . . Parts Stripped . | . . . Power Chain Reactions . | . . . Alert | -11 -10 -10 ------- Run | Yrd Mat Min Maximum Alert Level . | . . . Low Security (%) 100 | 100 100 100 Level 1 . | . . . Level 2 . | . . . Level 3 . | . . . Level 4 . | . . . Level 5 . | . . . High Security . | . . . Max Security . | . . . Peak Influence 100 | 10 100 64 Initial 16 | . . 16 Average 31 | . 38 18 Influence Increases 614 | 10 454 150 Destroy 0b10 Robot/C 300 | . 280 20 Destroy 0b10 Robot/NC 35 | 10 20 5 Destroy Leader 76 | . 76 . Successful Hack 32 | . 32 . Disable Machine 30 | . 15 15 Destroy Structure 51 | . 1 50 Lose Combat Pursuer 90 | . 30 60 Influence Decreases 570 | 10 412 148 Entered New Map 26 | . . 26 Time Decay 372 | 10 320 42 Lost Part 80 | . . 80 Purge Threat 92 | . 92 . Squads Dispatched 4 | . 4 . Investigation 2 | . 2 . Extermination . | . . . Reinforcement 2 | . 2 . Assault . | . . . Garrison . | . . . Intercept . | . . . Searches Triggered . | . . . Construction Impeded . | . . . Haulers Reinforced . | . . . Active Scanning Responses . | . . . Cargo Convoy Interrupts . | . . . Stealth | -11 -10 -10 --------- Run | Yrd Mat Min Distress Signals 1 | . 1 . Communications Jammed . | . . . Distress Signals . | . . . Times Spotted 51 | . 26 25 Peak Tracking Total 22 | . 4 22 Tactical Retreats 5 | . 2 3 Traps | -11 -10 -10 ------- Run | Yrd Mat Min Traps Triggered 2 | . 2 . Indirectly . | . . . Trap Hack Attempts . | . . . Triggered . | . . . Disarmed . | . . . Reprogrammed . | . . . Reused . | . . . Traps Extracted . | . . . Installed . | . . . Triggered . | . . . Machines | -11 -10 -10 ---------- Run | Yrd Mat Min Machines Disabled 2 | . 1 1 Max in Single Turn 1 | . 1 1 Machines Repaired . | . . . Machines Dismantled . | . . . Machines Sabotaged . | . . . Overloaded Fab Kills . | . . . Hacking | -11 -10 -10 --------- Run | Yrd Mat Min Machines Accessed 4 | . 4 . Terminals 4 | . 4 . Fabricators . | . . . Repair Stations . | . . . Recycling Units . | . . . Scanalyzers . | . . . Garrison Access . | . . . Total Hacks 12 | . 12 . Successful 5 | . 5 . Failed 7 | . 7 . Catastrophic 2 | . 2 . Database Lockouts . | . . . Manual 6 | . 6 . Terminals 12 | . 12 . Fabricators . | . . . Repair Stations . | . . . Recycling Units . | . . . Scanalyzers . | . . . Garrison Access . | . . . Terminal Hacks 5 | . 5 . Robot Analysis 1 | . 1 . Unreport Threat 2 | . 2 . Locate Traps 2 | . 2 . Fabricator Hacks . | . . . Repair Station Hacks . | . . . Recycling Unit Hacks . | . . . Scanalyzer . | . . . Garrison Access Hacks . | . . . Unauthorized Hacks . | . . . Terminals . | . . . Fabricators . | . . . Repair Stations . | . . . Recycling Units . | . . . Scanalyzers . | . . . Garrison Access . | . . . Data Cores Recovered . | . . . Used . | . . . Hacking Detections 4 | . 4 . Full Trace Events 3 | . 3 . Feedback Events . | . . . Feedback Blocked . | . . . Robot Schematics Acquired . | . . . Robots Built . | . . . Authchips . | . . . Time . | . . . Total Robot Build Rating . | . . . Part Schematics Acquired . | . . . Parts Built . | . . . Authchips . | . . . Time . | . . . Total Part Build Rating . | . . . Part Studies Acquired . | . . . Parts Repaired . | . . . Time . | . . . Parts Recycled . | . . . Recycled Matter . | . . . Retrieved Matter . | . . . Retrieved Components . | . . . Parts Scanalyzed . | . . . Part Schematics Acquired . | . . . Parts Damaged . | . . . Bothacking | -11 -10 -10 ------------ Run | Yrd Mat Min Used RIF Installer . | . . . Robots Hacked . | . . . Non-combat . | . . . Combat . | . . . Robot Hacks Applied . | . . . Relay Couplers Released . | . . . Fabnet Peak Effective % . | . . . Robots Rewired . | . . . Allies Hacked . | . . . Hacks Repelled . | . . . Allies | -11 -10 -10 -------- Run | Yrd Mat Min Total Allies . | . . . Largest Group . | . . . Highest-Rated Group . | . . . Highest-Rated Ally . | . . . Total Orders . | . . . Ally Attacks . | . . . Total Damage . | . . . Kills . | . . . Allies Corrupted . | . . . Allies Melted . | . . . Intel | -11 -10 -10 ------- Run | Yrd Mat Min Active Infowar (turns) 512 | . 474 38 Sensors 255 | . 217 38 T.N.C. 257 | . 257 . Robot Analysis Total 1 | . 1 . Derelict Logs Recovered . | . . . Drone Launches . | . . . Drone Recoveries . | . . . Exploration | -11 -10 -10 ------------- Run | Yrd Mat Min Turns Passed 1210 | 135 919 156 Spaces Moved 486 | 78 328 80 Core 5 | 4 1 . Treads 251 | . 251 . Legs 230 | 74 76 80 Wheels . | . . . Hover . | . . . Flight . | . . . Fastest Speed 50 | 50 120 120 Average Speed 151 | 117 166 127 Slowest Speed 350 | 120 350 190 Overloaded Moves . | . . . Propulsion Burnouts . | . . . Robots Hopped . | . . . Potential Cave-ins . | . . . Cave-ins Triggered . | . . . Exploration Rate (%) 25 | 4 52 21 Regions Visited 2 Branch Regions 1 Pre-discovered Areas . | . . . Known Exits Taken . | . . . Unknown Exits Taken 2 | 1 1 . Scrap Searched . | . . . Spaces Dug . | . . . Terrain Destroyed 62 | . . 62 Melee . | . . . Projectile . | . . . AOE 62 | . . 62 Terrain Rammed . | . . . Walls Destroyed . | . . . Machines Disabled . | . . . Actions | -11 -10 -10 --------- Run | Yrd Mat Min Total 811 | 104 597 110 Wait 180 | 9 170 1 Move 484 | 77 327 80 Hop . | . . . Pick Up 18 | 4 12 2 Fast Attach 11 | 6 5 . Attach 7 | . 2 5 Detach 6 | . 6 . Swap 12 | . 7 5 Drop 12 | . 11 1 Fire 81 | 8 57 16 Melee . | . . . Ram . | . . . Kick . | . . . Crush . | . . . Escape Stasis . | . . . Rewire . | . . . Trap . | . . . Miscellaneous . | . . . Route ------- -11/Scrapyard -10/Materials (discovered 3 exits: [*Mat x2] / [*Min]) -10/Mines History --------- Turn | Location | Event 10 | -11/Scrapyard | Discovered new exit (range 16) 136 | -11/Scrapyard | Entered Materials 310 | -10/Materials | Build established: Mutant 519 | -10/Materials | Discovered new exit (range 5) 610 | -10/Materials | Discovered new exit (range 7) 929 | -10/Materials | Discovered new exit (range 16) 1055 | -10/Materials | Entered Mines 1056 | -10/Mines | Assembled infested the area 1061 | -10/Mines | Assisted by a Guerilla fighting off Assembled 1090 | -10/Mines | Core integrity fell below 50% 1125 | -10/Mines | Destroyed 16 combat bots 1126 | -10/Mines | Lost 6 parts (1p1n1u3w) 1178 | -10/Mines | Core integrity fell below 20% 1211 | -10/Mines | Destroyed by D-53 Grenadier with Mini Grenade Launcher Last Messages --------------- 01104_ as-11555 destroyed. 01110_ The unstable cave ceiling collapses. 01121_ Acquired Flexi-carbon Leg. 01122_ Acquired 44 matter. 01123_ The unstable cave ceiling collapses. 01124_ Acquired 8 matter. 01127_ Extracted 8 matter. 01129_ Acquired 12 matter. 01137_ Acquired 4 matter. 01143_ Acquired 20 matter. 01147_ U-05 Engineer lays Concrete. 01148_ Acquired Sml. Matter Pod. 01148_ U-05 Engineer lays Concrete. 01149_ Dropped Sml. Matter Pod. 01150_ U-05 Engineer lays Concrete. 01160_ U-05 Engineer builds a Wall. 01161_ U-05 Engineer lays Concrete. 01199_ System corrupted: Component data lost. 01209_ Aluminum Leg destroyed. 01209_ Grenade Launcher destroyed. Map ----- +----------------------------------------------------+ | ????????#### # ### < %????? | | ?????????# # ### #?# ###??????? | | ?????????# #### ??????? | | ?????????# #??## ###?????? | | ?????????# " #????# # ##???????? | | ?????????#" #?????# ####??????????? | | ?????????#" #?????? #?????????????? | | ?????????# #??????? ?????????????? | | ?????????####### ###?????? ????????????? | | ???????????????### #######?#???????????? | | ??????????????## #???????????? | | ??????????????# ########??????????????? | | ??????????????## #?????????????????????? | | ???????????????# # #?????????????????????? | | ?????????????### ####?????????????????????? | | ?????????????# # ##???????????????????????? | | ?????????????# ?#####?????????????????? | | ????????????## # ##????????????????? | | ????????????# d #????????????????? | | ????????????? #????????????????? | | ????????????## #?????????????????? | | ????????????# ##?????????????????? | | ????????????# ##??????????????????? | | ????????????# #??????????????????? | | ?????????????# #???????????????????? | | ?????????????# @ #???????????????????? | | ?????????????# #??????????????????? | | ?????????????# #??????????????????? | | ?????????????## #??????????????????? | | ??????????????## # # #??????????????????? | | ???????????????#### ## ?????????????????? | | ??????????????????? #??###????????????????? | | ??????????????????? #?????????????????????? | | ???????????????????##?????????????????????? | | ??????????????????????????????????????????? | | ??????????????????????????????????????????? | | ??????????????????????????????????????????? | | ??????????????????????????????????????????? | | ??????????????????????????????????????????? | | ??????????????????????????????????????????? | | ??????????????????????????????????????????? | | ??????????????????????????????????????????? | | ??????????????????????????????????????????? | | ??????????????????????????????????????????? | | ??????????????????????????????????????????? | | ??????????????????????????????????????????? | | ??????????????????????????????????????????? | | ??????????????????????????????????????????? | | ??????????????????????????????????????????? | | ??????????????????????????????????????????? | +----------------------------------------------------+ Best States ------------- Heat Dissipation 25 Energy Generation 14 Energy Capacity 250 Matter Stores 300 Matter Capacity 300 Sight Range 16 Robot Scan Range 14 Terrain Scan Density 10 Evasion (%) 55 Recoil Reduction 2 Item Schematics ----------------- None Robot Schematics ------------------ None Fabricated ------------ Nothing Repaired ---------- Nothing Studied --------- None Alien Tech Used ----------------- None Achievements -------------- Exterminator Hunted Challenges ------------ None Game ------ Seed MediumAntimissileTether Manual? 0 Play Time 00:24:42 Cumulative 77.0 hours Start 2025.11.13 @ 21:00:19 End 2025.11.13 @ 21:25:03 Sessions 1 Manual Loads 0 Difficulty Rogue Special Mode None Game No. 42 Rogue 42 Adventurer 0 Explorer 0 Win Type - Total 0 Types 0/0/0/0/0/0/0/0/0/0 Lore% 17 Gallery% 28 Achievement% 22 Wizard Run 0 Options --------- Layout 1 ASCII 1 Keyboard 1 Movement Vi Keybinds 0 Fullscreen 2 Font 36/Terminus Map View 50x43 Zoom Use 1% Tactical HUD 1 Map Filters NONE Filters NONE Steam 1 RUN: 5e37ed40-7893-42ea-a71a-99ba69e61659